Cogmind - Beta 16 @@@ ROGUE MODE // 2025.11.05 @ 19:17:57 Player: Ghraemdal Result: Destroyed by G-47 Trooper with Particle Gun Performance ------------- Evolutions (0) 0 Regions Visited (1) 200 Robots Destroyed (14) 70 Value Destroyed (315) 315 Prototype IDs (0) 0 Alien Tech Used (0) 0 Bonus (0) 0 TOTAL SCORE: 585 Bonus ------- None Cogmind --------- Core Integrity 0/250 Matter 213/400 Energy 57/100 System Corruption 4% Temperature Cool (38) Movement Core (450) Ox8 Location -10/Materials Parts ------- > --- POWER (1) -------- (None) > --- PROPULSION (2) --- (None) > --- UTILITY (2) ------ Large Storage Unit Medium Matter Pod > --- WEAPON (2) ------- Spread Laser > --- INVENTORY (15) --- Light Ion Engine Aluminum Leg Aluminum Leg Wheel Compact Wheel Sensor Array Signal Interpreter Utility Shielding Medium Laser Assault Rifle Shotgun Datajack Mining Laser Peak State ------------ > --- POWER ------------ Light Ion Engine > --- PROPULSION ------- Aluminum Leg Aluminum Leg > --- UTILITY ---------- Large Storage Unit Utility Shielding > --- WEAPON ----------- Shotgun EMP Blaster > --- INVENTORY -------- Light Ion Engine Light Treads Light Treads Aluminum Leg Aluminum Leg Wheel Medium Matter Pod Sensor Array Signal Interpreter Spread Laser Assault Rifle Datajack Mining Laser [Rating: 10] Favorites ----------- Power Light Ion Engine Engine Light Ion Engine Propulsion Aluminum Leg Treads Light Treads Leg Aluminum Leg Utility Large Storage Unit Storage Large Storage Unit Protection Utility Shielding Weapon EMP Blaster Energy Gun EM Pulse Gun Ballistic Gun Shotgun Launcher EMP Blaster Special Weapon Mining Laser Build | -11 -10 ------- Run | Yrd Mat Slots Evolved . | . . Power . | . . Propulsion . | . . Utility . | . . Weapon . | . . Parts Attached 18 | 8 10 Power 3 | 1 2 Engine 3 | 1 2 Core . | . . Reactor . | . . Propulsion 4 | 4 . Treads 2 | 2 . Leg 2 | 2 . Wheel . | . . Hover . | . . Flight . | . . Utility 4 | 1 3 Device . | . . Storage 3 | 1 2 Processor . | . . Hackware . | . . Protection 1 | . 1 Artifact . | . . Weapon 7 | 2 5 Energy Gun 3 | 1 2 Energy Cannon . | . . Ballistic Gun 2 | 1 1 Ballistic Cannon . | . . Launcher 1 | . 1 Special Weapon 1 | . 1 Impact Weapon . | . . Slashing Weapon . | . . Piercing Weapon . | . . Special Melee Weapon . | . . Unidentified Prototypes . | . . Parts Lost 7 | . 7 Power 2 | . 2 Propulsion 2 | . 2 Utility . | . . Weapon 3 | . 3 Highest Loss Streak 4 | . 4 To Critical Strikes . | . . Average Backups 9 | 2 10 Power 1 | . 1 Propulsion 3 | 1 3 Utility 1 | . 1 Weapon 2 | . 2 Tool/Special . | . . Unused Backups 9 | . 9 Power 1 | . 1 Propulsion 4 | . 4 Utility 2 | . 2 Weapon 1 | . 1 Tool/Special 1 | . 1 Average Slot Usage (%) 88 | . 88 Engine 12 | . 12 Leg 27 | . 27 Storage 17 | . 17 Protection 2 | . 2 Energy Gun 5 | . 5 Ballistic Gun 12 | . 12 Launcher 8 | . 8 Special Weapon 1 | . 1 Peak Build Rating 10 | 6 10 Average Rating 7 | 4 7 On Entrance 3 | . 6 Avg Prop Armor Cover (%) . | . . Naked Turns . | . . Heaviest Build 32 | 12 32 Greatest Support 40 | 40 20 Greatest Overweight (x) 9 | 2 9 Average Overweight (x) . | . . Largest Inventory Capacity 15 | 8 15 Average Capacity 14 | 7 14 Most Carried 14 | 4 14 Average Carried 9 | 2 10 Final Capacity 15 | 8 15 Final Carried 13 | 4 13 Class Distribution -------------------- 100% | Mutant Dominant Class ---------------- Mutant | -10/Materials Resources | -11 -10 ----------- Run | Yrd Mat Matter Collected 466 | 178 288 Remotely . | . . Salvage Created 380 | . 380 Parts 26 | . 26 Haulers Intercepted . | . . Recyclers Shooed 2 | . 2 Parts Field Recycled . | . . Retrieved Matter . | . . Parts Self-Destructed . | . . Prevented . | . . Parts Restored . | . . Kills | -11 -10 ------- Run | Yrd Mat Combat Hostiles Destroyed 10 | . 10 Guns 8 | . 8 AOE 2 | . 2 Classes Destroyed 5 | . 5 Worker 1 | . 1 Operator 1 | . 1 Watcher 2 | . 2 Swarmer 6 | . 6 Grunt 4 | . 4 Best Kill Streak 3 | . 3 Combat Bots Only 3 | . 3 Max Kills in Single Turn 1 | . 1 Gunslinging . | . . Exploded 1 | . 1 Melee . | . . Uniques/NPCs Destroyed . | . . Combat | -11 -10 -------- Run | Yrd Mat Hostile Shots Fired 82 | . 82 Missed 26 | . 26 Hits 56 | . 56 Projectile 56 | . 56 Damage Taken 954 | . 954 Core 259 | . 259 Absorbed by Shields . | . . Core Remaining (%) 100 | 100 . Volleys Fired 46 | . 46 Largest 2 | . 2 Hottest 120 | . 120 Shots Fired 80 | . 80 Gun 72 | . 72 Cannon . | . . Launcher 7 | . 7 Special 1 | . 1 Kinetic 41 | . 41 Thermal 6 | . 6 Explosive . | . . Electromagnetic 33 | . 33 Robot Hit Streak 6 | . 6 Robot Miss Streak 4 | . 4 Penetration Max . | . . Secondary Targets . | . . Shots Hit Robots 43 | . 43 Core Hits 24 | . 24 Critical Kills 1 | . 1 Critical Parts Destroyed . | . . Critical Strikes 1 | . 1 Destroy 1 | . 1 Melee Attacks . | . . Impact . | . . Slashing . | . . Piercing . | . . Sneak Attacks . | . . Combat Hostiles . | . . Follow-up Attacks . | . . Damage Inflicted 746 | . 746 Guns 535 | . 535 Cannons . | . . Explosions 204 | . 204 Melee . | . . Ramming 7 | . 7 Kinetic 313 | . 313 Thermal 109 | . 109 Explosive . | . . Electromagnetic 317 | . 317 Impact . | . . Slashing . | . . Piercing . | . . Highest Corruption 4 | . 4 Average Corruption 4 | . 4 Corruption Purged . | . . Corruption Blocked . | . . Effects 20 | . 20 Message Errors 3 | . 3 Matter Fused 6 | . 6 Heat Flow Errors 1 | . 1 Energy Discharges 2 | . 2 Data Loss (minor) 6 | . 6 Data Loss (major) 2 | . 2 Overload Shots . | . . Overflow Damage 12 | . 12 Projectiles . | . . Explosions 12 | . 12 Melee . | . . Knockbacks . | . . Impact . | . . Kinetic . | . . Secondary . | . . Self-Inflicted Damage 129 | . 129 Shots 6 | . 6 Rammed . | . . Targets Rammed 1 | . 1 Kicked 1 | . 1 Crushed . | . . Highest Temperature 229 | . 229 Average Temperature 39 | . 39 Received Heat Transfer 288 | . 288 Siege Activations . | . . Martial Activations . | . . Shielding Activations . | . . Robots Disrupted . | . . Combat Hostiles . | . . Robots Corrupted . | . . Combat Hostiles . | . . Parts Fried . | . . Impact Corruptions . | . . Robots Melted . | . . Combat Hostiles . | . . Parts Melted . | . . Heat Transferred 135 | . 135 Parts Sabotaged . | . . Parts Stolen . | . . Parts Stripped . | . . Power Chain Reactions 3 | . 3 Alert | -11 -10 ------- Run | Yrd Mat Maximum Alert Level . | . . Low Security (%) 100 | 100 100 Level 1 . | . . Level 2 . | . . Level 3 . | . . Level 4 . | . . Level 5 . | . . High Security . | . . Max Security . | . . Peak Influence 90 | . 90 Initial . | . . Average 21 | . 23 Influence Increases 390 | . 390 Destroy 0b10 Robot/C 200 | . 200 Destroy 0b10 Robot/NC 20 | . 20 Destroy Leader 34 | . 34 Successful Hack 15 | . 15 Disable Machine 105 | . 105 Destroy Structure 16 | . 16 Influence Decreases 351 | . 351 Time Decay 281 | . 281 Lost Part 70 | . 70 Squads Dispatched 3 | . 3 Investigation 1 | . 1 Extermination . | . . Reinforcement 2 | . 2 Assault . | . . Garrison . | . . Intercept . | . . Searches Triggered . | . . Construction Impeded . | . . Haulers Reinforced . | . . Active Scanning Responses . | . . Cargo Convoy Interrupts . | . . Stealth | -11 -10 --------- Run | Yrd Mat Distress Signals 3 | . 3 Communications Jammed . | . . Distress Signals . | . . Times Spotted 22 | . 22 Peak Tracking Total 5 | . 5 Tactical Retreats . | . . Traps | -11 -10 ------- Run | Yrd Mat Traps Triggered . | . . Indirectly . | . . Trap Hack Attempts . | . . Triggered . | . . Disarmed . | . . Reprogrammed . | . . Reused . | . . Traps Extracted . | . . Installed . | . . Triggered . | . . Machines | -11 -10 ---------- Run | Yrd Mat Machines Disabled 7 | . 7 Max in Single Turn 1 | . 1 Machines Repaired . | . . Machines Dismantled . | . . Machines Sabotaged . | . . Overloaded Fab Kills . | . . Hacking | -11 -10 --------- Run | Yrd Mat Machines Accessed 4 | . 4 Terminals 3 | . 3 Fabricators . | . . Repair Stations 1 | . 1 Recycling Units . | . . Scanalyzers . | . . Garrison Access . | . . Total Hacks 15 | . 15 Successful 7 | . 7 Failed 8 | . 8 Catastrophic 2 | . 2 Database Lockouts . | . . Manual 6 | . 6 Terminals 14 | . 14 Fabricators . | . . Repair Stations 1 | . 1 Recycling Units . | . . Scanalyzers . | . . Garrison Access . | . . Terminal Hacks 6 | . 6 Record 5 | . 5 Surveillance Status 1 | . 1 Fabricator Hacks . | . . Repair Station Hacks . | . . Recycling Unit Hacks . | . . Scanalyzer . | . . Garrison Access Hacks . | . . Unauthorized Hacks 1 | . 1 Terminals 1 | . 1 Botnet 1 | . 1 Fabricators . | . . Repair Stations . | . . Recycling Units . | . . Scanalyzers . | . . Garrison Access . | . . Data Cores Recovered 1 | . 1 Used . | . . Hacking Detections 3 | . 3 Full Trace Events 2 | . 2 Feedback Events . | . . Feedback Blocked . | . . Robot Schematics Acquired . | . . Robots Built . | . . Authchips . | . . Time . | . . Total Robot Build Rating . | . . Part Schematics Acquired . | . . Parts Built . | . . Authchips . | . . Time . | . . Total Part Build Rating . | . . Part Studies Acquired . | . . Parts Repaired . | . . Time . | . . Parts Recycled . | . . Recycled Matter . | . . Retrieved Matter . | . . Retrieved Components . | . . Parts Scanalyzed . | . . Part Schematics Acquired . | . . Parts Damaged . | . . Bothacking | -11 -10 ------------ Run | Yrd Mat Used RIF Installer . | . . Robots Hacked . | . . Non-combat . | . . Combat . | . . Robot Hacks Applied . | . . Relay Couplers Released . | . . Fabnet Peak Effective % . | . . Robots Rewired . | . . Allies Hacked . | . . Hacks Repelled . | . . Allies | -11 -10 -------- Run | Yrd Mat Total Allies . | . . Largest Group . | . . Highest-Rated Group . | . . Highest-Rated Ally . | . . Total Orders . | . . Ally Attacks . | . . Total Damage . | . . Kills . | . . Allies Corrupted . | . . Allies Melted . | . . Intel | -11 -10 ------- Run | Yrd Mat Active Infowar (turns) . | . . Robot Analysis Total . | . . Derelict Logs Recovered . | . . Drone Launches . | . . Drone Recoveries . | . . Exploration | -11 -10 ------------- Run | Yrd Mat Turns Passed 1279 | 80 1199 Spaces Moved 590 | 47 543 Core 9 | 8 1 Treads 15 | 15 . Legs 566 | 24 542 Wheels . | . . Hover . | . . Flight . | . . Fastest Speed 50 | 50 120 Average Speed 183 | 132 188 Slowest Speed 500 | 160 500 Overloaded Moves . | . . Propulsion Burnouts . | . . Robots Hopped . | . . Potential Cave-ins . | . . Cave-ins Triggered 1 | . 1 Exploration Rate (%) 34 | 4 65 Regions Visited 1 Branch Regions . Pre-discovered Areas . | . . Known Exits Taken . | . . Unknown Exits Taken 1 | 1 . Scrap Searched . | . . Spaces Dug . | . . Terrain Destroyed 13 | . 13 Melee . | . . Projectile . | . . AOE 13 | . 13 Terrain Rammed . | . . Walls Destroyed . | . . Machines Disabled . | . . Actions | -11 -10 --------- Run | Yrd Mat Total 697 | 60 637 Wait 17 | 2 15 Move 589 | 46 543 Hop . | . . Pick Up 20 | 4 16 Fast Attach 7 | 6 1 Attach 4 | . 4 Detach 1 | . 1 Swap 8 | 2 6 Drop 4 | . 4 Fire 46 | . 46 Melee . | . . Ram . | . . Kick 1 | . 1 Crush . | . . Escape Stasis . | . . Rewire . | . . Trap . | . . Miscellaneous . | . . Route ------- -11/Scrapyard -10/Materials (discovered 3 exits: [*Mat x2] / [*Min]) History --------- Turn | Location | Event 15 | -11/Scrapyard | Discovered new exit (range 15) 81 | -11/Scrapyard | Entered Materials 222 | -10/Materials | Discovered new exit (range 7) 301 | -10/Materials | Build established: Mutant 465 | -10/Materials | Discovered new exit (range 15) 496 | -10/Materials | Crushed by falling debris 1031 | -10/Materials | Core integrity fell below 50% 1063 | -10/Materials | Discovered new exit (range 6) 1259 | -10/Materials | Core integrity fell below 20% 1280 | -10/Materials | Destroyed by G-47 Trooper with Particle Gun Last Messages --------------- Found 1 active surveillance squad. Downloaded coordinate data. 01185_ Connecting with Terminal... 01201_ System corrupted: Substantial component data lost. 01232_ System corrupted: Component data lost. 01243_ Material Compactor disabled. 01243_ S-10 Pest destroyed. 01252_ R-06 Scavenger collects Corrupted Flight Unit. 01253_ S-10 Pest destroyed. 01258_ Lgt. Ion Engine destroyed. 01264_ Aluminum Leg destroyed. 01264_ U-05 Engineer lays Concrete. 01276_ Aluminum Leg destroyed. 01276_ G-34 Mercenary suffers critical hit (Burn). 01279_ R-06 Scavenger collects Corrupted Lgt. Assault Rifle. 01280_ EMP Blaster destroyed. Map ----- +----------------------------------------------------+ | ####???????????#"" # #???##???????????????? | | ???????????????#""""" # #?? ""???????????????? | | ??????????? ???#""""" # #?? """??????????????? | | ######????# ???#""""" # #? """ ????????????? | | ? ???#""""" !# #?! ?????????????? | | ? ???#""""" # # ??????????????? | | #######???# ???#""""" #^^^# "T" ???????????????? | | ######????# ???# +^^^/ """ ????? ?????????? | | #????# ???########## # # #????????? | | #????# #### ## ########## ???????? | | #????# ???????? | | ! #????# < ????????? | | #????# r ????????? | | #????# ## ## = ?????????? | | #????# ## " "!" ## g %*%""""?????????? | | #????+ ##""|"!""## =% """?????????? | | +########## ########### """ ????????? | | #????????## "" T#?????? | | ##########+########??# #??????? | | #????????# #??# g #??????? | | ###????????# "" #??# ########## #??????? | | #########??# """ #??# g #???????????????????? | | "T" #??# """ #??# #???????????????????? | | #??# "" #??## ##???????????????????? | | """ #??# "" """#???# #????????????????????? | | """" #??# """ R"#???#@k #????????????????????? | | "" #??# """ """#???# w #????????????????????? | | #??# #???# #????????????????????? | | ########+####???# #????????????????????? | | * + #?????# #????????????????????? | | ###+########### #?????# #????????????????????? | | ## # #?????# #????????????????????? | | ^ ##[ """ + #????## ##???????????????????? | | ## ## """ # #????# #???????????????????? | | ?# ## """ # < ###### #???????????????????? | | ## ## # T #???????????????????? | | ## """ ########## #???????????????????? | | ## ## """ #????????# #???????????????????? | | ?##### """ #???????####+#####?????????????????? | | ?????# #???????# #?????????????????? | | ?????##########???????# """ #?????????????????? | | ??????????????????????# """ #?????????????????? | | ??????????????????????# """ #?????????????????? | | ??????????????????????# #?????????????????? | | ??????????????????????# """ #?????????????????? | | ??????????????????????# """ #?????????????????? | | ??????????????????????# """ #?????????????????? | | ??????????????????????# [#?????????????????? | | ????????????????????????########?????????????????? | | ?????????????????????????????????????????????????? | +----------------------------------------------------+ Best States ------------- Heat Dissipation 25 Energy Generation 10 Energy Capacity 125 Matter Stores 300 Matter Capacity 400 Sight Range 16 Terrain Scan Density 10 Utility Shielding 33 Evasion (%) 55 Recoil Reduction 2 Item Schematics ----------------- None Robot Schematics ------------------ None Fabricated ------------ Nothing Repaired ---------- Nothing Studied --------- None Alien Tech Used ----------------- None Achievements -------------- None Challenges ------------ None Game ------ Seed TiamatLegBotcube Manual? 0 Play Time 00:25:10 Cumulative 6.2 hours Start 2025.11.04 @ 23:16:53 End 2025.11.05 @ 19:17:57 Sessions 4 Manual Loads 0 Difficulty Rogue Special Mode None Game No. 8 Rogue 8 Adventurer 0 Explorer 0 Win Type - Total 0 Types 0/0/0/0/0/0/0/0/0/0 Lore% 2 Gallery% 11 Achievement% 10 Wizard Run 0 Options --------- Layout 2 ASCII 0 Keyboard 1 Movement Numpad Keybinds 0 Fullscreen 1 Font 24/Smallcaps Map View 50x44 Zoom Use 4% Tactical HUD 1 Map Filters NONE Filters NONE Steam 1 RUN: be48e4b7-f551-4bfa-9b2e-bf03c2e47300